bitfinex/quotes_BTCUSD_20250826
["timestamp","ask_amount","ask_price","bid_price","bid_amount"]
[1756223373219,0.1820996,109830.0,109820.0,0.7337794]
[1756223373619,0.1820996,109830.0,109820.0,0.00686403]
[1756223374140,0.1841996,109830.0,109820.0,0.16675403]
[1756223374316,0.1820996,109830.0,109820.0,0.16998403]
[1756223374519,0.2094796,109830.0,109820.0,0.89917585]
[1756223374674,0.1820996,109830.0,109820.0,0.8968994]
[1756223375379,0.1820996,109830.0,109820.0,0.7281229]
[1756223375579,0.1820996,109830.0,109820.0,0.5650029]
[1756223375791,0.1841996,109830.0,109820.0,0.16998403]
[1756223375983,0.1820996,109830.0,109820.0,0.16998403]
[1756223376600,0.1841996,109830.0,109820.0,0.16994403]
[1756223377008,0.1841996,109830.0,109820.0,0.00686403]
[1756223377209,0.1841996,109830.0,109820.0,0.16998403]
[1756223377415,0.1820996,109830.0,109820.0,0.16998403]
[1756223377961,0.1820996,109830.0,109820.0,0.7281229]
[1756223378195,0.1820996,109830.0,109820.0,0.91023909]
[1756223381372,0.19038246,109840.0,109820.0,0.91023909]
[1756223381587,0.1820996,109830.0,109820.0,0.90700909]
[1756223382327,0.1820996,109830.0,109820.0,0.91001909]
[1756223383032,0.18043937,109840.0,109820.0,0.91001909]
[1756223383240,0.15406037,109840.0,109830.0,0.74552471]
[1756223383454,0.15602037,109840.0,109830.0,0.16504]
[1756223383706,0.1820996,109830.0,109820.0,0.00448403]
[1756223384171,0.1840596,109830.0,109820.0,0.16451403]
[1756223384346,0.1840596,109830.0,109820.0,0.16651403]
[1756223384980,0.1840596,109830.0,109820.0,0.00648403]
[1756223384981,0.1820996,109830.0,109820.0,0.00648403]
[1756223385155,0.1840596,109830.0,109820.0,0.16952403]
[1756223385484,0.1872296,109830.0,109820.0,0.16351403]
[1756223385708,0.1872296,109830.0,109820.0,0.00047403]
[1756223385910,0.1872296,109830.0,109820.0,0.16351403]
[1756223386109,0.1872296,109830.0,109820.0,0.00047403]
[1756223386234,0.2146116,109830.0,109820.0,0.16347403]
[1756223386587,0.2114416,109830.0,109820.0,0.16347403]
[1756223386817,0.2114416,109830.0,109820.0,0.16547403]
[1756223387016,0.2146116,109830.0,109820.0,0.16347403]
[1756223387289,0.2094816,109830.0,109820.0,0.16447403]
[1756223387504,0.2094816,109830.0,109820.0,0.00147403]
[1756223387702,0.92427573,109830.0,109820.0,0.00147403]
[1756223388270,0.36613686,109830.0,109820.0,0.00147403]
[1756223388494,1.36208249,109830.0,109820.0,0.00147403]
[1756223389543,0.64094362,109830.0,109820.0,0.00147403]
[1756223389747,1.36208249,109830.0,109820.0,0.00147403]
[1756223391777,1.21653151,109830.0,109820.0,0.00147403]
[1756223391980,1.3987977,109830.0,109820.0,0.00147403]
[1756223392213,1.49024299,109830.0,109820.0,0.00147403]
[1756223392736,1.49024299,109830.0,109820.0,0.00047403]
[1756223393137,1.49124299,109830.0,109820.0,0.00047403]
[1756223393555,1.32828299,109830.0,109820.0,0.00047403]
[1756223393745,1.49324299,109830.0,109820.0,0.00047403]
[1756223394482,1.49320299,109830.0,109820.0,0.00047403]
[1756223394677,1.4017577,109830.0,109820.0,0.00047403]
[1756223395287,0.84361883,109830.0,109820.0,0.00047403]
[1756223395489,1.4017577,109830.0,109820.0,0.00047403]
[1756223396072,1.2388377,109830.0,109820.0,0.00047403]
[1756223396275,1.4080427,109830.0,109820.0,0.00047403]
[1756223396697,0.84990383,109830.0,109820.0,0.00047403]
[1756223396902,1.4080427,109830.0,109820.0,0.00047403]
[1756223398202,1.4017177,109830.0,109820.0,0.00047403]
[1756223400420,1.17458364,109830.0,109820.0,0.00047403]
[1756223400929,1.38407024,109830.0,109820.0,0.00047403]
[1756223401561,0.64560235,109830.0,109820.0,0.00047403]
[1756223401880,0.2124866,109830.0,109820.0,0.00047403]
[1756223402058,0.2124866,109830.0,109820.0,0.00051403]
[1756223402259,0.5524866,109830.0,109820.0,0.00051403]
[1756223402834,0.5514866,109830.0,109820.0,0.00051403]
[1756223403271,0.5494866,109830.0,109820.0,0.5586529]
[1756223403439,0.1820996,109830.0,109820.0,0.74076909]
[1756223403647,0.1820996,109830.0,109820.0,0.90360909]
[1756223403648,0.1830996,109830.0,109820.0,0.90360909]
[1756223403900,0.1830996,109830.0,109820.0,0.7214929]
[1756223404239,0.1830996,109830.0,109820.0,0.90360909]
[1756223404449,0.1820996,109830.0,109820.0,0.90360909]
[1756223404678,0.1820996,109830.0,109820.0,0.90460909]
[1756223407401,0.18044237,109840.0,109820.0,0.90460909]
[1756223407402,0.15306037,109840.0,109820.0,0.90460909]
[1756223407561,0.15306037,109840.0,109830.0,0.56041511]
[1756223407769,0.15306037,109840.0,109830.0,0.55813887]
[1756223408211,0.15306037,109840.0,109820.0,0.34647022]
[1756223408361,0.15306037,109840.0,109830.0,0.56041511]
[1756223408557,0.15306037,109840.0,109830.0,0.55813887]
[1756223408786,0.15306037,109840.0,109830.0,0.74023847]
[1756223409139,0.15306037,109840.0,109830.0,0.55813887]
[1756223410341,0.15306037,109840.0,109830.0,0.74023847]
[1756223410536,0.15306037,109840.0,109830.0,0.55813887]
[1756223410981,0.15406037,109840.0,109830.0,0.55813887]
[1756223411184,0.15406037,109840.0,109830.0,0.55913887]
[1756223411985,0.18308302,109840.0,109830.0,0.81127847]
[1756223412561,0.001,109840.0,109830.0,0.81127847]
[1756223412774,0.18308302,109840.0,109830.0,0.81127847]
[1756223412990,0.18308302,109840.0,109830.0,0.82094911]
[1756223413209,0.001,109840.0,109830.0,0.82094911]
[1756223413889,0.001,109840.0,109830.0,0.98362911]
[1756223414725,0.001,109840.0,109830.0,1.07509113]
[1756223415383,0.001,109840.0,109830.0,1.660605]
[1756223415830,0.001,109840.0,109830.0,1.10246613]
[1756223416042,0.001,109840.0,109830.0,1.660605]
[1756223416254,0.001,109840.0,109830.0,1.660565]
[1756223416476,0.001,109840.0,109830.0,1.497925]
[1756223416687,0.001,109840.0,109830.0,1.10242613]
[1756223416900,0.001,109840.0,109830.0,1.50142613]
[1756223417180,0.001,109840.0,109830.0,1.50242613]
[1756223417401,0.001,109840.0,109830.0,1.10242613]
[1756223417622,0.18206696,109850.0,109840.0,0.18208302]
[1756223417846,0.18206696,109850.0,109840.0,0.83168391]
[1756223418053,0.18206696,109850.0,109840.0,0.99432391]
[1756223418476,0.19115316,109860.0,109840.0,0.99432391]
[1756223418702,0.20103377,109870.0,109850.0,0.74248115]
[1756223418914,0.53116399,109870.0,109860.0,0.1626]
[1756223419129,0.53116399,109870.0,109860.0,0.72301449]
[1756223419328,0.53116399,109870.0,109860.0,0.72073887]
[1756223419529,0.19116399,109870.0,109860.0,0.72073887]
[1756223420172,0.00014306,109870.0,109860.0,0.72073887]
[1756223420386,0.00014306,109870.0,109860.0,0.97282875]
[1756223420589,0.00014306,109870.0,109860.0,1.06429077]
[1756223421208,0.00014306,109870.0,109860.0,0.3435519]
[1756223421412,0.00014306,109870.0,109860.0,1.06425077]
[1756223422855,0.00014306,109870.0,109860.0,0.5060719]
[1756223423067,0.00014306,109870.0,109860.0,1.06421077]
[1756223423951,0.00014306,109870.0,109860.0,0.3709169]
[1756223424125,0.00014306,109870.0,109860.0,0.5334369]
[1756223424337,0.00014306,109870.0,109860.0,1.09157577]
[1756223424538,0.00014306,109870.0,109860.0,0.5334369]
[1756223424738,0.00014306,109870.0,109860.0,1.09457577]
[1756223425007,0.00014306,109870.0,109860.0,1.49457577]
[1756223425209,0.00014306,109870.0,109860.0,1.49257577]
[1756223425368,0.00014306,109870.0,109860.0,1.49157577]
[1756223425567,0.00014306,109870.0,109860.0,1.49153577]
[1756223425771,0.00014306,109870.0,109860.0,1.49353577]
[1756223425957,0.00014306,109870.0,109860.0,1.49653577]
[1756223426157,0.00014306,109870.0,109860.0,0.9383969]
[1756223426476,0.00014306,109870.0,109860.0,1.09653577]
[1756223426987,0.00014306,109870.0,109860.0,1.49653577]
[1756223427615,0.00014306,109870.0,109860.0,1.33405577]
[1756223427955,0.00014306,109870.0,109860.0,1.49653577]
[1756223428161,0.00014306,109870.0,109860.0,1.49649577]
[1756223429127,0.00014306,109870.0,109860.0,0.9383569]
[1756223429326,0.00014306,109870.0,109860.0,1.33405577]
[1756223429528,0.18217637,109870.0,109860.0,1.09649577]
[1756223429953,0.00014306,109870.0,109860.0,1.09649577]
[1756223430363,0.00014306,109870.0,109860.0,0.5383569]
[1756223430593,0.00014306,109870.0,109860.0,1.09649577]
[1756223431146,0.00014306,109870.0,109860.0,1.13786298]
[1756223434816,0.00014306,109870.0,109860.0,0.57972411]
[1756223435025,0.00014306,109870.0,109860.0,1.13786298]
[1756223436692,0.18202808,109890.0,109870.0,0.18201857]
[1756223436887,0.18202808,109890.0,109880.0,0.1646352]
[1756223439040,0.18201674,109880.0,109870.0,0.09146202]
[1756223439447,0.18201674,109880.0,109870.0,0.25382202]
[1756223439856,0.18203331,109870.0,109860.0,0.13877221]
[1756223441149,0.74017218,109870.0,109860.0,0.27372721]
[1756223441558,0.18203331,109870.0,109860.0,0.27372721]
[1756223441759,0.18203331,109870.0,109860.0,0.27572721]
[1756223442182,0.18203331,109870.0,109860.0,0.27672721]
[1756223444804,0.18203331,109870.0,109860.0,0.45877709]
[1756223445281,0.18203331,109870.0,109860.0,0.27668721]
[1756223446458,0.18203331,109870.0,109860.0,0.45873709]
[1756223448532,0.18203331,109870.0,109860.0,0.27668721]
[1756223449364,0.18203331,109870.0,109860.0,0.45873709]
[1756223450741,0.18203331,109870.0,109860.0,0.27668721]
[1756223450921,0.18203331,109870.0,109860.0,0.45873709]
[1756223451327,0.18203331,109870.0,109860.0,0.27668721]
[1756223451733,0.18203331,109870.0,109860.0,0.45873709]
[1756223452915,0.18203331,109870.0,109860.0,0.27668721]
[1756223453128,0.18203331,109870.0,109860.0,0.23528]
[1756223453809,0.18203331,109870.0,109860.0,0.07304]
[1756223454091,0.74017218,109870.0,109860.0,0.07304]
[1756223454298,0.74017218,109870.0,109860.0,0.23524]
[1756223455555,0.61699492,109870.0,109860.0,0.23524]
[1756223458086,0.05885605,109870.0,109860.0,0.23524]
[1756223458286,0.05985605,109870.0,109860.0,0.23524]
[1756223458578,0.05885605,109870.0,109860.0,0.23524]
[1756223460505,0.05985605,109870.0,109860.0,0.23524]
[1756223460948,0.05885605,109870.0,109860.0,0.23524]
[1756223461169,0.05985605,109870.0,109860.0,0.23524]
[1756223461959,0.05885605,109870.0,109860.0,0.23524]
[1756223462538,0.05985605,109870.0,109860.0,0.23524]
[1756223463390,0.05885605,109870.0,109860.0,0.23524]
[1756223465277,0.05985605,109870.0,109860.0,0.23524]
[1756223466301,0.05885605,109870.0,109860.0,0.23524]
[1756223467300,0.08722805,109870.0,109860.0,0.23524]
[1756223467515,0.08722805,109870.0,109860.0,0.07304]
[1756223467730,0.72710529,109870.0,109860.0,0.003]
[1756223467966,1.06710529,109870.0,109860.0,0.16508]
[1756223468384,1.24663431,109870.0,109860.0,0.003]
[1756223468800,0.52204988,109860.0,109850.0,0.16204]
[1756223469012,1.08018875,109860.0,109850.0,0.16204]
[1756223469639,1.19902777,109860.0,109850.0,0.16204]
[1756223469851,0.18206645,109850.0,109840.0,0.07047403]
[1756223470059,0.74020532,109850.0,109840.0,0.23251403]
[1756223471338,0.76758232,109850.0,109840.0,0.23251403]
[1756223471748,0.54863642,109850.0,109840.0,0.16451403]
[1756223471953,0.73070287,109850.0,109840.0,0.16451403]
[1756223472155,0.73070287,109850.0,109840.0,0.16551403]
[1756223472367,0.73070287,109850.0,109840.0,0.00347403]
[1756223472571,0.73070287,109850.0,109840.0,0.16551403]
[1756223472778,0.76758232,109850.0,109840.0,0.16551403]
[1756223473825,0.77757062,109850.0,109840.0,0.16551403]
[1756223474386,0.77757062,109850.0,109840.0,0.00347403]
[1756223474991,0.77757062,109850.0,109840.0,0.16547403]
[1756223475177,0.77757062,109850.0,109840.0,0.00347403]
[1756223475761,1.30047793,109850.0,109840.0,0.00347403]
[1756223475976,1.47992695,109850.0,109840.0,0.00347403]
[1756223476860,1.47992695,109850.0,109840.0,0.00247403]
[1756223477062,1.31792695,109850.0,109840.0,0.00247403]
[1756223477237,1.47992695,109850.0,109840.0,0.00247403]
[1756223477433,1.47992695,109850.0,109840.0,0.00047403]
[1756223477682,1.31792695,109850.0,109840.0,0.00047403]
[1756223477878,1.47988695,109850.0,109840.0,0.00047403]
[1756223478396,1.48088695,109850.0,109840.0,0.00047403]
[1756223478604,1.46343793,109850.0,109840.0,0.00047403]
[1756223478804,1.48088695,109850.0,109840.0,0.00047403]
[1756223479329,1.48188695,109850.0,109840.0,0.00047403]
[1756223480753,0.92370808,109850.0,109840.0,0.00047403]
[1756223481067,1.39040166,109850.0,109840.0,0.00047403]
[1756223482446,0.56143175,109850.0,109840.0,0.00047403]
[1756223483674,1.21103264,109850.0,109840.0,0.00047403]
[1756223484582,0.56143175,109850.0,109840.0,0.00047403]
[1756223484799,0.21144345,109850.0,109840.0,0.00047403]
[1756223485467,0.21144345,109850.0,109840.0,0.18255705]
[1756223485985,0.029377,109850.0,109840.0,0.90257592]
[1756223486476,0.001,109850.0,109840.0,0.99403794]
[1756223487151,0.027371,109870.0,109860.0,0.18204988]
[1756223487370,0.182017,109880.0,109870.0,0.18203331]
[1756223487582,0.19112808,109890.0,109870.0,0.74017218]
[1756223487789,0.20938474,109880.0,109870.0,0.18203331]
[1756223487998,0.20938474,109880.0,109870.0,0.34391331]
[1756223488422,0.027368,109880.0,109870.0,0.34391331]
[1756223488827,0.20084692,109890.0,109870.0,0.34391331]
[1756223489037,0.18201674,109880.0,109870.0,0.34391331]
[1756223489240,0.22821492,109890.0,109870.0,0.34391232]
[1756223489855,0.18201674,109880.0,109870.0,0.34391232]
[1756223490124,0.19112808,109890.0,109870.0,0.90205119]
[1756223490365,0.18201674,109880.0,109870.0,0.90205119]
[1756223491476,0.19212808,109890.0,109870.0,0.90205119]
[1756223491697,0.18302808,109890.0,109880.0,0.0022752]
[1756223491912,0.18202808,109890.0,109880.0,0.0022752]
[1756223492586,0.18302808,109890.0,109880.0,0.0022752]
[1756223493227,0.18202808,109890.0,109880.0,0.18429194]
[1756223493740,0.18202808,109890.0,109870.0,0.90405119]
[1756223493948,0.18202808,109890.0,109880.0,0.0022752]
[1756223494372,0.18202808,109890.0,109880.0,0.16176]
[1756223494576,0.18201674,109880.0,109870.0,0.002]
[1756223494783,0.18201674,109880.0,109860.0,0.86940293]
[1756223494994,0.18201674,109880.0,109870.0,0.16176]
[1756223495404,0.18201674,109880.0,109870.0,0.34379331]
[1756223496278,0.18202808,109890.0,109870.0,0.90193218]
[1756223496491,0.18202808,109890.0,109880.0,0.0022752]
[1756223497358,0.18202808,109890.0,109880.0,0.74243081]
[1756223497614,0.18202808,109890.0,109880.0,0.18201674]
[1756223497841,0.18202808,109890.0,109880.0,0.0022752]
[1756223498049,0.18202808,109890.0,109880.0,0.16168]
[1756223498533,0.1820308,109880.0,109860.0,0.95175359]
[1756223498747,0.18203331,109870.0,109860.0,0.95175359]
[1756223499157,0.18203331,109870.0,109860.0,1.11343359]
[1756223499767,0.18203331,109870.0,109860.0,0.55529472]
[1756223499990,0.18203331,109870.0,109860.0,1.11343359]
[1756223500196,0.18203331,109870.0,109860.0,0.29241045]
[1756223500403,0.18203331,109870.0,109860.0,0.45609932]
[1756223500606,0.18203331,109870.0,109860.0,0.45709932]
[1756223501013,0.18203331,109870.0,109860.0,0.45909932]
[1756223501664,0.18203331,109870.0,109860.0,0.46109932]
[1756223501864,0.18203331,109870.0,109860.0,1.01923819]
[1756223502286,0.18203331,109870.0,109860.0,0.83718831]
[1756223502484,0.18203331,109870.0,109860.0,1.01923819]
[1756223502708,0.1820308,109880.0,109870.0,0.18203331]
[1756223503116,0.1820308,109880.0,109870.0,0.74017218]
[1756223503531,0.19112808,109890.0,109870.0,0.74017218]
[1756223503743,0.19112808,109890.0,109880.0,0.1639152]
[1756223503957,0.19112808,109890.0,109880.0,0.34593194]
[1756223504164,0.19112808,109890.0,109880.0,0.34365674]
[1756223504383,0.21852058,109900.0,109880.0,0.90179561]
[1756223504597,0.1820554,109900.0,109890.0,0.18427518]
[1756223504818,0.18198362,109900.0,109890.0,0.25200018]
[1756223505015,0.18198362,109900.0,109890.0,0.81013905]
[1756223505451,0.18198362,109900.0,109890.0,0.25200018]
[1756223506314,0.18198362,109900.0,109890.0,0.81013905]
[1756223506520,0.18207947,109910.0,109890.0,0.81013905]
[1756223506742,0.52222271,109910.0,109900.0,0.16387479]
[1756223506870,0.52222271,109910.0,109900.0,0.1616]
[1756223507090,0.52222271,109910.0,109900.0,0.16387479]
[1756223507294,0.52222271,109910.0,109900.0,0.16287479]
[1756223507711,0.52222271,109910.0,109900.0,0.16187479]
[1756223508222,0.52522271,109910.0,109900.0,0.16187479]
[1756223509533,0.52722271,109910.0,109900.0,0.16187479]
[1756223510584,0.52722271,109910.0,109900.0,0.16387479]
[1756223510804,0.52722271,109910.0,109900.0,0.16187479]
[1756223512070,0.00514324,109910.0,109900.0,0.1596]
[1756223512217,0.18913819,109910.0,109900.0,0.1596]
[1756223512419,0.18198362,109900.0,109890.0,0.07]
[1756223512630,0.18198362,109900.0,109890.0,0.23354]
[1756223514230,0.18198362,109900.0,109890.0,0.41554018]
[1756223514837,0.18198362,109900.0,109890.0,0.97367905]
[1756223517372,0.18213819,109910.0,109890.0,0.41554018]
[1756223517580,0.18198362,109900.0,109890.0,0.97367905]
[1756223517778,0.18213819,109910.0,109890.0,0.97367905]
[1756223518815,0.18198362,109900.0,109890.0,0.97367905]
[1756223519855,0.18198362,109900.0,109890.0,0.79167887]
[1756223520064,0.18198362,109900.0,109890.0,0.63015887]
[1756223520264,0.18198362,109900.0,109890.0,0.071]
[1756223520475,0.18198362,109900.0,109890.0,0.23244]
[1756223520691,0.18198362,109900.0,109890.0,0.071]
[1756223520893,0.18198362,109900.0,109890.0,0.23344]
[1756223521375,0.69626072,109910.0,109890.0,0.23344]
[1756223521582,0.18198362,109900.0,109890.0,0.23344]
[1756223522109,0.18198362,109900.0,109890.0,0.25602018]
[1756223522311,0.18198362,109900.0,109890.0,0.97559905]
[1756223522505,0.18198362,109900.0,109890.0,0.41646018]
[1756223522718,0.18198362,109900.0,109890.0,0.97459905]
[1756223523133,0.13812185,109910.0,109890.0,0.97459905]
[1756223523339,0.13812185,109910.0,109900.0,0.56041366]
[1756223523535,0.13812185,109910.0,109890.0,0.97459905]
[1756223523765,0.13812185,109910.0,109900.0,0.00227479]
[1756223524043,0.13812185,109910.0,109900.0,0.18627841]
[1756223524288,0.13812185,109910.0,109900.0,0.00202]
[1756223524509,0.13812185,109910.0,109900.0,0.00429479]
[1756223524728,0.13812185,109910.0,109900.0,0.18627841]
[1756223524943,0.13812185,109910.0,109900.0,0.56015887]
[1756223525186,0.13812185,109910.0,109900.0,0.18400362]
[1756223525409,0.13812185,109910.0,109900.0,0.56015887]
[1756223525631,0.13812185,109910.0,109890.0,0.41344018]
[1756223525632,0.18198362,109900.0,109890.0,0.23144]
[1756223525873,0.18198362,109900.0,109890.0,0.88306089]
[1756223526089,0.18198362,109900.0,109890.0,0.20532183]
[1756223526305,0.18198362,109900.0,109890.0,0.36672183]
[1756223526759,0.18198362,109900.0,109890.0,0.54872201]
[1756223526973,0.18198362,109900.0,109890.0,0.9248607]
[1756223527411,0.18198362,109900.0,109890.0,0.55072201]
[1756223527853,0.18198362,109900.0,109890.0,0.36872183]
[1756223528317,0.18198362,109900.0,109890.0,0.36868183]
[1756223528746,0.18198362,109900.0,109890.0,0.36872183]
[1756223529178,0.18198362,109900.0,109890.0,0.9268607]
[1756223529825,0.18198362,109900.0,109890.0,1.10886088]
[1756223530685,0.18198362,109900.0,109890.0,0.9268607]
[1756223530889,0.18198362,109900.0,109890.0,1.10886088]
[1756223531602,0.18198362,109900.0,109890.0,0.9268607]
[1756223531638,0.18198362,109900.0,109890.0,1.10886088]
[1756223532513,0.18198362,109900.0,109890.0,0.95072201]
[1756223532663,0.18198362,109900.0,109890.0,1.3268607]
[1756223533465,0.18198362,109900.0,109890.0,1.1655007]
[1756223533712,0.18198362,109900.0,109890.0,1.3268207]
[1756223534738,0.18198362,109900.0,109890.0,0.51589981]
[1756223534903,0.18198362,109900.0,109890.0,0.67519981]
[1756223535333,0.18198362,109900.0,109890.0,0.27519981]
[1756223535722,0.18198362,109900.0,109890.0,0.23336]
[1756223535934,0.20137779,109900.0,109890.0,0.07204]
[1756223536172,0.20137779,109900.0,109890.0,0.23336]
[1756223536612,0.72362372,109910.0,109890.0,0.23336]
[1756223536811,0.18198362,109900.0,109890.0,0.23336]
[1756223537331,0.18198362,109900.0,109890.0,0.23548]
[1756223537574,0.18198362,109900.0,109890.0,0.23336]
[1756223537791,0.71509963,109910.0,109890.0,0.23236]
[1756223537950,0.7235175,109910.0,109890.0,0.23236]
[1756223538173,0.18198362,109900.0,109890.0,0.23236]
[1756223539863,0.18198362,109900.0,109890.0,0.23348]
[1756223540698,0.18198362,109900.0,109890.0,0.23448]
[1756223541145,0.18198362,109900.0,109890.0,0.07316]
[1756223541371,0.74012249,109900.0,109890.0,0.00204]
[1756223541572,0.76748849,109900.0,109890.0,0.16328]
[1756223541990,0.77251849,109900.0,109890.0,0.16328]
[1756223543315,0.77251849,109900.0,109890.0,0.16228]
[1756223543754,0.77351849,109900.0,109890.0,0.16228]
[1756223544204,0.77351849,109900.0,109890.0,0.16128]
[1756223544630,0.77551849,109900.0,109890.0,0.16128]
[1756223545718,1.20603012,109900.0,109890.0,4e-05]
[1756223545926,1.20603012,109900.0,109890.0,0.16128]
[1756223547525,0.55737962,109900.0,109890.0,0.16128]
[1756223547729,1.11551849,109900.0,109890.0,0.16128]
[1756223547941,0.21234962,109900.0,109890.0,0.1665]
[1756223548150,0.18498362,109900.0,109890.0,0.1665]
[1756223548576,0.18498362,109900.0,109890.0,0.34850018]
[1756223548788,0.18498362,109900.0,109890.0,0.1665]
[1756223549198,0.18498362,109900.0,109890.0,0.35077518]
[1756223549199,0.21234662,109900.0,109890.0,0.35077518]
[1756223549437,0.21234662,109900.0,109890.0,0.34850018]
[1756223549652,0.18498362,109900.0,109890.0,0.34850018]
[1756223550397,0.18398362,109900.0,109890.0,0.34850018]
[1756223553086,0.21012555,109920.0,109900.0,0.90680451]
[1756223553296,0.23748255,109920.0,109910.0,0.34540164]
[1756223553509,0.23748255,109920.0,109910.0,0.16426]
[1756223553713,0.21848186,109920.0,109910.0,0.16765458]
[1756223554590,0.21948186,109920.0,109910.0,0.16765458]
[1756223555122,0.22048186,109920.0,109910.0,0.16765458]
[1756223555822,0.22244186,109920.0,109910.0,0.16228]
[1756223556041,0.18196706,109910.0,109900.0,0.2030315]
[1756223556254,0.74206593,109910.0,109900.0,0.23112]
[1756223556460,0.74206593,109910.0,109900.0,0.23324]
[1756223556929,0.74206593,109910.0,109900.0,0.23634]
[1756223557150,0.74206593,109910.0,109900.0,0.07]
[1756223557359,0.74511593,109910.0,109900.0,0.23112]
[1756223558216,0.18198362,109900.0,109890.0,4e-05]
[1756223558432,0.74012249,109900.0,109890.0,0.16126324]
[1756223558666,0.74209249,109900.0,109890.0,0.16338324]
[1756223558879,0.76945549,109900.0,109890.0,0.16338324]
[1756223559600,0.76945549,109900.0,109890.0,0.00230324]
[1756223559800,0.76945549,109900.0,109890.0,0.16338324]
[1756223560252,0.21131662,109900.0,109890.0,0.16338324]
[1756223560465,0.20934662,109900.0,109890.0,0.16858324]
[1756223560669,0.20934662,109900.0,109890.0,0.35285842]
[1756223560887,0.20934662,109900.0,109890.0,0.35058342]
[1756223561314,0.18196706,109910.0,109900.0,0.18198362]
[1756223561522,0.18196706,109910.0,109900.0,0.18730362]
[1756223561727,0.19112486,109920.0,109900.0,0.27876564]
[1756223561984,0.19112486,109920.0,109910.0,0.16331458]
[1756223562188,0.21848186,109920.0,109910.0,0.16863458]
[1756223563028,0.22045186,109920.0,109910.0,0.16863458]
[1756223563458,0.21848186,109920.0,109910.0,0.16863458]
[1756223564287,0.21848186,109920.0,109910.0,0.23863458]
[1756223564503,0.21848186,109920.0,109910.0,0.23636]
[1756223565393,0.22048186,109920.0,109910.0,0.23636]
[1756223565610,0.22148186,109920.0,109910.0,0.23636]
[1756223565806,0.22348186,109920.0,109910.0,0.23636]
[1756223566981,0.22348186,109920.0,109910.0,0.07532]
[1756223567194,0.22445186,109920.0,109910.0,0.23632]
[1756223567408,0.22545186,109920.0,109910.0,0.23632]
[1756223567810,0.78359073,109920.0,109910.0,0.23632]
[1756223567989,0.77959073,109920.0,109910.0,0.23632]
[1756223568198,0.77859073,109920.0,109910.0,0.23632]
[1756223568430,0.22245186,109920.0,109910.0,0.23632]
[1756223568646,0.22345186,109920.0,109910.0,0.23632]
[1756223569130,0.22650186,109920.0,109910.0,0.23096]
[1756223569335,0.78464073,109920.0,109910.0,0.23096]
[1756223571196,0.78159073,109920.0,109910.0,0.23308]
[1756223571624,0.78464073,109920.0,109910.0,0.23096]
[1756223572233,0.78159073,109920.0,109910.0,0.23308]
[1756223572640,0.22345186,109920.0,109910.0,0.23308]
[1756223573253,0.22148186,109920.0,109910.0,0.97638593]
[1756223573627,0.22148186,109920.0,109910.0,0.79441887]
[1756223573834,0.22345186,109920.0,109910.0,0.79441887]
[1756223574219,0.22148186,109920.0,109910.0,0.79441887]
[1756223574415,0.21238434,109920.0,109910.0,0.97638593]
[1756223574607,0.18502734,109920.0,109910.0,0.97638593]
[1756223574796,0.18302734,109920.0,109910.0,0.97638593]
[1756223575207,0.18502734,109920.0,109910.0,0.97638593]
[1756223575403,0.18402734,109920.0,109910.0,0.97638593]
[1756223575652,0.18502734,109920.0,109910.0,0.97638593]
[1756223576142,0.1829505,109920.0,109910.0,0.97638593]
[1756223576366,0.001,109920.0,109910.0,1.06784795]
[1756223576583,0.001,109920.0,109910.0,1.07761773]
[1756223577272,0.001,109920.0,109910.0,1.07753773]
[1756223577894,0.2092941,109930.0,109920.0,0.1819505]
[1756223578108,0.2092941,109930.0,109920.0,0.1872705]
[1756223578537,0.2112641,109930.0,109920.0,0.1872705]
[1756223578759,0.2112641,109930.0,109920.0,0.2289513]
[1756223578964,0.2143141,109930.0,109920.0,0.2025208]
[1756223579175,0.2143141,109930.0,109920.0,0.16084]
[1756223579382,0.1819505,109920.0,109910.0,0.72380089]
[1756223579603,0.1819505,109920.0,109910.0,0.51058908]
[1756223580879,0.1839205,109920.0,109910.0,0.34874908]
[1756223581187,0.1839205,109920.0,109910.0,0.50738908]
[1756223581390,0.1839205,109920.0,109910.0,0.16778202]
[1756223581600,0.1839205,109920.0,109910.0,0.32330202]
[1756223581812,0.1839205,109920.0,109910.0,0.32430202]
[1756223582011,0.1869705,109920.0,109910.0,0.32430202]
[1756223582277,0.1869705,109920.0,109910.0,0.072]
[1756223582494,0.1869705,109920.0,109910.0,0.2328]
[1756223582703,0.1819505,109920.0,109910.0,0.25928706]
[1756223582919,0.00197,109920.0,109910.0,0.97822593]
[1756223583127,0.2092941,109930.0,109910.0,1.01881993]
[1756223583332,0.1819381,109930.0,109910.0,1.01881993]
[1756223583467,0.027356,109920.0,109910.0,1.01881993]
[1756223584051,0.1819381,109930.0,109910.0,1.01881993]
[1756223584185,0.2092951,109930.0,109910.0,1.01881993]
[1756223584390,0.1819505,109920.0,109910.0,1.01881993]
[1756223584604,0.1819505,109920.0,109910.0,1.01781993]
[1756223584814,0.1839205,109920.0,109910.0,0.271394]
[1756223584999,0.1839205,109920.0,109910.0,0.273514]
[1756223585402,0.1819505,109920.0,109910.0,0.45868106]
[1756223585830,0.2092951,109930.0,109910.0,1.09033953]
[1756223586078,0.2092951,109930.0,109920.0,0.74556375]
[1756223586278,0.2092951,109930.0,109920.0,0.74328937]
[1756223586482,0.1819381,109930.0,109920.0,0.74540937]
[1756223587350,0.18193395,109930.0,109920.0,0.1872705]
[1756223587501,0.18193395,109930.0,109920.0,0.74540937]
[1756223587702,0.18193395,109930.0,109920.0,0.00532]
[1756223587932,0.18193395,109930.0,109920.0,0.16608]
[1756223588126,0.18708395,109930.0,109920.0,0.16076]
[1756223588333,0.1819505,109920.0,109910.0,0.83584449]
[1756223588554,0.1819505,109920.0,109910.0,1.18064155]
[1756223589854,0.1839505,109920.0,109910.0,0.61933268]
[1756223590424,0.1839505,109920.0,109910.0,0.43736562]
[1756223590630,0.1839505,109920.0,109910.0,0.43836562]
[1756223591261,0.1839505,109920.0,109910.0,0.62346268]
[1756223591460,0.1839505,109920.0,109910.0,0.62033268]
[1756223591876,0.1839505,109920.0,109910.0,0.62346268]
[1756223592036,0.1839505,109920.0,109910.0,0.62446268]
[1756223592277,0.1839505,109920.0,109910.0,0.28177562]
[1756223592480,0.1839505,109920.0,109910.0,0.43936562]
[1756223592692,0.1839505,109920.0,109910.0,0.62133268]
[1756223592900,0.1839505,109920.0,109910.0,0.62446268]
[1756223593098,0.1839505,109920.0,109910.0,0.62133268]
[1756223593311,0.1839505,109920.0,109910.0,0.62129268]
[1756223593908,0.1839505,109920.0,109910.0,0.62442268]
[1756223594796,0.1819505,109920.0,109910.0,0.62442268]
[1756223595265,0.1819505,109920.0,109910.0,1.18256155]
[1756223595630,0.1839505,109920.0,109910.0,0.36680602]
[1756223595832,0.1871005,109920.0,109910.0,0.273274]
[1756223596045,0.1839505,109920.0,109910.0,0.45731106]
[1756223596242,0.1839505,109920.0,109910.0,0.46044106]
[1756223596688,0.1839505,109920.0,109910.0,0.117794]